[Event "WYCC U18 Open 2019"]
[Site "Mumbai"]
[Date "2019.10.10"]
[Round "9.9"]
[White "Petriashvili, Nikoloz"]
[Black "Buckels, Valentin"]
[Result "0-1"]
[ECO "D31"]
[WhiteElo "2441"]
[BlackElo "2442"]
[Annotator "ChessBase"]
[PlyCount "56"]
[EventDate "2019.10.02"]
[EventType "swiss"]
[EventCountry "IND"]
[SourceTitle "playchess.com"]
[Source "ChessBase"]
[SourceQuality "1"]
[TimeControl "40/5400+30:1800+30"]

1. c4 {[%emt 0:00:34]} e6 {[%emt 0:00:00]} 2. Nc3 {[%emt 0:00:19]} d5 {[%emt 0:00:00]} 3. d4 {[%emt 0:00:08]} a6 {[%emt 0:00:00]} 4. cxd5 {[%emt 0:01:10]} exd5 {[%emt 0:00:00]} 5. Nf3 {[%emt 0:02:46]} c6 {[%emt 0:00:52]} 6. e4 {[%emt 0:01:21]} dxe4 {[%emt 0:01:17]} 7. Nxe4 {[%emt 0:00:08]} Nf6 {[%emt 0:09:23]} 8. Bg5 {[%emt 0:12:26]} Bb4+ {[%emt 0:07:50]} 9. Nc3 {[%emt 0:01:01]} h6 {[%emt 0:13:28]} 10. Bh4 {[%emt 0:12:26]} Qa5 {[%emt 0:06:04]} 11. Bd3 {[%emt 0:08:01]} Bxc3+ {[%emt 0:01:44]} 12. bxc3 {[%emt 0:00:02]} Qxc3+ {[%emt 0:00:17]} 13. Kf1 {[%emt 0:00:05]} Nd5 {[%emt 0:00:34]} 14. Rc1 {[%emt 0:07:16]} Qa3 15. Ne5 {[%emt 0:00:36]} Nf4 {[%emt 0:09:05]} 16. Bc4 {[%emt 0:12:14]} O-O {[%emt 0:01:47]} 17. Qd2 {[%emt 0:03:47]} Nd5 {[%emt 0:02:38]} 18. Bxd5 {[%emt 0:01:25]} cxd5 {[%emt 0:00:02]} 19. Rc7 {[%emt 0:00:22]} Qd6 {[%emt 0:04:20]} 20. Qc3 {[%emt 0:02:14]} Nd7 {[%emt 0:01:33]} 21. Nd3 {[%emt 0:11:53]} Nf6 {[%emt 0:05:34]} 22. Qc5 {[%emt 0:01:17]} Qxc5 {[%emt 0:02:18]} 23. Nxc5 {[%emt 0:01:25]} b6 {[%emt 0:04:41]} 24. Na4 {[%emt 0:01:29]} g5 {[%emt 0:07:39]} 25. Bg3 {[%emt 0:00:34]} Bd7 {[%emt 0:00:30]} 26. Nxb6 {[%emt 0:10:06]} Bb5+ {[%emt 0:00:16]} 27. Kg1 {[%emt 0:00:05]} Rab8 {[%emt 0:00:40]} 28. a4 {[%emt 0:00:07]} Bxa4 {[%emt 0:01:03]} 0-1

[Event "WYCC U18 Open 2019"]
[Site "Mumbai"]
[Date "2019.10.10"]
[Round "9.10"]
[White "Garidmagnai, Byambasuren"]
[Black "Zhalmakhanov, Ramazan"]
[Result "0-1"]
[ECO "E32"]
[WhiteElo "2327"]
[BlackElo "2374"]
[Annotator "NA"]
[PlyCount "110"]
[EventDate "2019.10.02"]
[EventType "swiss"]
[EventCountry "IND"]
[SourceTitle "playchess.com"]
[Source "ChessBase"]
[SourceQuality "1"]
[TimeControl "40/5400+30:1800+30"]

1. d4 {[%emt 0:00:00]} Nf6 {[%emt 0:00:39]} 2. c4 {[%emt 0:00:00]} e6 {[%emt 0:00:13]} 3. Nc3 {[%emt 0:00:00]} Bb4 {[%emt 0:00:06]} 4. Qc2 {[%emt 0:00:00]} O-O {[%emt 0:01:50]} 5. a3 {[%emt 0:01:38]} Bxc3+ {[%emt 0:00:17]} 6. Qxc3 {[%emt 0:00:04]} Ne4 {[%emt 0:02:26]} 7. Qc2 {[%emt 0:00:43]} f5 {[%emt 0:00:16]} 8. Nf3 {[%emt 0:02:21]} b6 {[%emt 0:02:51]} 9. g3 {[%emt 0:01:26]} Bb7 {[%emt 0:10:01]} 10. Bg2 {[%emt 0:00:18]} Qf6 {[%emt 0:10:04]} 11. O-O {[%emt 0:01:59]} d6 {[%emt 0:03:03]} 12. b4 {[%emt 0:15:35]} Nd7 {[%emt 0:00:42]} 13. Bb2 {[%emt 0:00:28]} Qe7 {[%emt 0:04:25]} 14. Ne1 {[%emt 0:06:38]} c5 {[%emt 0:07:42]} 15. dxc5 {[%emt 0:04:35]} dxc5 {[%emt 0:07:03]} 16. b5 {[%emt 0:03:27]} e5 {[%emt 0:05:56]} 17. Nd3 {[%emt 0:06:57]} a5 {[%emt 0:06:44]} 18. Rad1 {[%emt 0:01:53]} Rad8 {[%emt 0:01:18]} 19. Qc1 {[%emt 0:09:15]} Nd6 {[%emt 0:13:25]} 20. Bc6 {[%emt 0:04:05]} Qe6 {[%emt 0:03:42]} 21. Bxd7 {[%emt 0:17:25]} Rxd7 {[%emt 0:00:07]} 22. Nxe5 {[%emt 0:00:05]} Re7 {[%emt 0:00:11]} 23. Qf4 {[%emt 0:03:06]} Nf7 {[%emt 0:04:58]} 24. Nc6 {[%emt 0:02:50]} Rd7 {[%emt 0:03:06]} 25. Ne5 {[%emt 0:14:16]} Nxe5 {[%emt 0:02:40]} 26. Qxe5 {[%emt 0:00:58]} Qf7 {[%emt 0:01:27]} 27. Rxd7 {[%emt 0:00:52]} Qxd7 {[%emt 0:00:01]} 28. Re1 {[%emt 0:01:01]} Re8 {[%emt 0:02:21]} 29. Qc3 {[%emt 0:00:31]} Re7 {[%emt 0:03:39]} 30. f3 {[%emt 0:00:15]} Qd6 {[%emt 0:00:47]} 31. Bc1 {[%emt 0:01:17]} h6 {[%emt 0:01:15]} 32. Kf2 {[%emt 0:00:18]} Kh7 {[%emt 0:01:21]} 33. h4 {[%emt 0:00:42]} Qe6 {[%emt 0:00:08]} 34. Qc2 {[%emt 0:00:50]} Rd7 {[%emt 0:01:25]} 35. g4 {[%emt 0:00:30]} Rf7 {[%emt 0:00:04]} 36. Bb2 {[%emt 0:00:38]} Qd6 {[%emt 0:01:14]} 37. Rh1 {[%emt 0:00:30]} Qg6 {[%emt 0:00:29]} 38. Rg1 {[%emt 0:00:41]} Qd6 {[%emt 0:00:13]} 39. Rg2 {[%emt 0:00:42]} Be4 {[%emt 0:00:43]} 40. fxe4 {[%emt 0:00:15]} Qf4+ {[%emt 0:00:01]} 41. Kg1 {[%emt 0:30:50]} Qe3+ {[%emt 0:30:41]} 42. Kh2 {[%emt 0:00:00]} Qf4+ {[%emt 0:00:00]} 43. Kh3 {[%emt 0:00:00]} fxg4+ {[%emt 0:00:00]} 44. Rxg4 {[%emt 0:00:00]} Qf1+ {[%emt 0:00:00]} 45. Rg2 {[%emt 0:00:00]} Qh1+ {[%emt 0:00:00]} 46. Kg3 {[%emt 0:00:00]} Qe1+ {[%emt 0:00:00]} 47. Kg4 {[%emt 0:00:00]} Qf1 {[%emt 0:00:00]} 48. e5+ {[%emt 0:00:00]} g6 {[%emt 0:00:00]} 49. Qe4 {[%emt 0:00:00]} Rf4+ {[%emt 0:00:00]} 50. Qxf4 {[%emt 0:00:00]} Qxg2+ {[%emt 0:00:00]} 51. Qg3 {[%emt 0:00:00]} Qxe2+ {[%emt 0:00:00]} 52. Qf3 {[%emt 0:00:00]} h5+ {[%emt 0:00:00]} 53. Kf4 {[%emt 0:00:00]} Qxb2 {[%emt 0:00:00]} 54. Qd3 {[%emt 0:00:00]} Qf2+ {[%emt 0:00:00]} 55. Ke4 {[%emt 0:02:36]} Qxh4+ {[%emt 0:00:00]} 0-1

[Event "WYCC U18 Open 2019"]
[Site "Mumbai"]
[Date "2019.10.10"]
[Round "9.11"]
[White "Bykov, Oleg"]
[Black "Aliyev, Ravan"]
[Result "1/2-1/2"]
[ECO "A43"]
[WhiteElo "2370"]
[BlackElo "2341"]
[Annotator "NA"]
[PlyCount "121"]
[EventDate "2019.10.02"]
[EventType "swiss"]
[EventCountry "IND"]
[SourceTitle "playchess.com"]
[Source "ChessBase"]
[SourceQuality "1"]
[TimeControl "40/5400+30:1800+30"]

1. d4 {[%emt 0:00:00]} g6 {[%emt 0:00:00]} 2. c4 {[%emt 0:00:19]} Bg7 {[%emt 0:00:00]} 3. Nc3 {[%emt 0:00:06]} c5 {[%emt 0:00:01]} 4. d5 {[%emt 0:00:04]} Bxc3+ {[%emt 0:00:06]} 5. bxc3 {[%emt 0:00:03]} f5 {[%emt 0:00:08]} 6. e4 {[%emt 0:02:45]} fxe4 {[%emt 0:00:18]} 7. f3 {[%emt 0:00:08]} d6 {[%emt 0:00:20]} 8. fxe4 {[%emt 0:00:25]} Nf6 {[%emt 0:00:07]} 9. Bd3 {[%emt 0:03:23]} Nbd7 {[%emt 0:01:23]} 10. Nf3 {[%emt 0:02:33]} Ng4 {[%emt 0:07:45]} 11. O-O {[%emt 0:01:05]} O-O {[%emt 0:09:21]} 12. h3 {[%emt 0:15:39]} Nge5 {[%emt 0:00:24]} 13. Bh6 {[%emt 0:00:18]} Rf7 {[%emt 0:04:52]} 14. Be2 {[%emt 0:07:17]} Nxf3+ {[%emt 0:03:24]} 15. gxf3 {[%emt 0:08:56]} Nf6 {[%emt 0:01:15]} 16. Kg2 {[%emt 0:08:30]} e5 {[%emt 0:04:18]} 17. dxe6 {[%emt 0:12:12]} Bxe6 {[%emt 0:01:00]} 18. Qd2 {[%emt 0:00:16]} Qd7 {[%emt 0:21:13]} 19. Rh1 {[%emt 0:00:10]} Re8 {[%emt 0:07:25]} 20. a4 {[%emt 0:05:10]} Qc6 {[%emt 0:03:07]} 21. Rhd1 Qc8 {[%emt 0:11:12]} 22. h4 {[%emt 0:08:24]} Nd7 {[%emt 0:05:59]} 23. Qxd6 {[%emt 0:05:41]} Ne5 {[%emt 0:01:20]} 24. Kg3 {[%emt 0:08:35]} Bxc4 {[%emt 0:08:57]} 25. Bxc4 {[%emt 0:00:19]} Nxc4 {[%emt 0:00:02]} 26. Qd5 {[%emt 0:00:11]} Nb6 {[%emt 0:02:27]} 27. Qg5 {[%emt 0:00:58]} Nd7 {[%emt 0:00:51]} 28. Rd6 {[%emt 0:03:39]} Qc7 {[%emt 0:05:50]} 29. Rad1 {[%emt 0:00:30]} Nf6 {[%emt 0:00:26]} 30. Kg2 {[%emt 0:01:01]} Nh5 {[%emt 0:00:56]} 31. Rd8 {[%emt 0:03:44]} Rfe7 {[%emt 0:00:01]} 32. Qd5+ {[%emt 0:02:47]} Kh8 {[%emt 0:00:01]} 33. Qd6 {[%emt 0:00:31]} Qxd6 {[%emt 0:01:16]} 34. Rxe8+ {[%emt 0:00:30]} Rxe8 {[%emt 0:00:01]} 35. Rxd6 {[%emt 0:00:05]} Kg8 {[%emt 0:00:22]} 36. Rd7 {[%emt 0:00:17]} Rb8 {[%emt 0:00:01]} 37. e5 {[%emt 0:00:29]} a6 {[%emt 0:01:06]} 38. a5 {[%emt 0:00:47]} b6 {[%emt 0:00:01]} 39. axb6 {[%emt 0:00:49]} Rxb6 {[%emt 0:00:01]} 40. f4 {[%emt 0:00:27]} a5 {[%emt 0:02:11]} 41. Ra7 {[%emt 0:30:44]} a4 {[%emt 0:10:51]} 42. Kf3 {[%emt 0:00:00]} Rb3 {[%emt 0:09:00]} 43. Ke2 {[%emt 0:00:00]} c4 {[%emt 0:05:35]} 44. Rxa4 {[%emt 0:00:00]} Ng3+ {[%emt 0:00:22]} 45. Kd2 {[%emt 0:00:00]} Ne4+ {[%emt 0:03:04]} 46. Ke3 {[%emt 0:00:00]} Nxc3 {[%emt 0:00:06]} 47. Ra8+ {[%emt 0:00:00]} Kf7 {[%emt 0:00:02]} 48. Kd4 {[%emt 0:00:00]} Ne2+ {[%emt 0:05:01]} 49. Kxc4 {[%emt 0:00:00]} Rb7 {[%emt 0:00:11]} 50. Ra6 {[%emt 0:02:23]} Ng3 {[%emt 0:00:44]} 51. e6+ {[%emt 0:00:48]} Kf6 {[%emt 0:00:01]} 52. Bg5+ {[%emt 0:00:21]} Kg7 {[%emt 0:00:00]} 53. e7 {[%emt 0:01:29]} Rb8 {[%emt 0:00:10]} 54. Kd5 {[%emt 0:01:14]} h6 {[%emt 0:01:14]} 55. Rd6 {[%emt 0:00:50]} Re8 {[%emt 0:00:47]} 56. Rd8 {[%emt 0:00:32]} Kf7 {[%emt 0:00:01]} 57. Rxe8 {[%emt 0:00:22]} Kxe8 {[%emt 0:00:01]} 58. Bf6 {[%emt 0:00:33]} Nh5 {[%emt 0:00:37]} 59. Ke5 {[%emt 0:00:38]} Kf7 {[%emt 0:00:10]} 60. Bh8 {[%emt 0:00:29]} Kxe7 {[%emt 0:00:07]} 61. Ke4 {[%emt 0:00:14]} 1/2-1/2

[Event "WYCC U18 Open 2019"]
[Site "Mumbai"]
[Date "2019.10.10"]
[Round "9.12"]
[White "Sibi Visal R"]
[Black "Gumularz, Szymon"]
[Result "1/2-1/2"]
[ECO "A10"]
[WhiteElo "2064"]
[BlackElo "2505"]
[Annotator "ChessBase"]
[PlyCount "80"]
[EventDate "2019.10.02"]
[EventType "swiss"]
[EventCountry "IND"]
[SourceTitle "playchess.com"]
[Source "ChessBase"]
[SourceQuality "1"]
[TimeControl "40/5400+30:1800+30"]

1. c4 {[%emt 0:00:00]} g6 {[%emt 0:00:00]} 2. Nc3 {[%emt 0:00:00]} Bg7 {[%emt 0:00:00]} 3. g3 {[%emt 0:00:00]} Nf6 {[%emt 0:00:01]} 4. Bg2 {[%emt 0:00:00]} O-O {[%emt 0:00:08]} 5. Nf3 {[%emt 0:00:00]} d6 {[%emt 0:00:08]} 6. O-O {[%emt 0:00:00]} e5 {[%emt 0:00:15]} 7. d3 {[%emt 0:00:00]} Nc6 {[%emt 0:00:55]} 8. Bg5 {[%emt 0:00:00]} h6 {[%emt 0:02:09]} 9. Bxf6 {[%emt 0:00:01]} Bxf6 {[%emt 0:00:04]} 10. Rb1 {[%emt 0:00:07]} Bg7 {[%emt 0:08:26]} 11. b4 {[%emt 0:00:16]} f5 {[%emt 0:00:05]} 12. b5 {[%emt 0:00:01]} Ne7 {[%emt 0:00:05]} 13. Qc2 {[%emt 0:00:10]} g5 {[%emt 0:06:59]} 14. Nd5 {[%emt 0:00:10]} Ng6 {[%emt 0:13:52]} 15. Nd2 {[%emt 0:00:47]} Be6 {[%emt 0:11:02]} 16. a4 {[%emt 0:04:08]} Qd7 {[%emt 0:03:01]} 17. Nb4 {[%emt 0:09:27]} Rab8 {[%emt 0:02:08]} 18. a5 {[%emt 0:00:09]} e4 {[%emt 0:10:05]} 19. dxe4 {[%emt 0:02:30]} f4 {[%emt 0:00:07]} 20. Nd3 {[%emt 0:07:15]} b6 {[%emt 0:07:59]} 21. a6 {[%emt 0:02:00]} g4 {[%emt 0:00:22]} 22. Nxf4 {[%emt 0:13:25]} Nxf4 {[%emt 0:00:35]} 23. gxf4 {[%emt 0:06:23]} Rxf4 {[%emt 0:00:07]} 24. e3 {[%emt 0:00:22]} Rff8 {[%emt 0:10:38]} 25. f4 {[%emt 0:09:10]} gxf3 {[%emt 0:00:10]} 26. Nxf3 {[%emt 0:00:02]} Qe7 {[%emt 0:04:04]} 27. Nd4 {[%emt 0:01:28]} Bd7 {[%emt 0:01:53]} 28. Kh1 {[%emt 0:10:00]} Be5 {[%emt 0:00:57]} 29. Nf5 {[%emt 0:02:12]} Qh7 {[%emt 0:04:45]} 30. Bh3 {[%emt 0:11:20]} Kh8 {[%emt 0:00:39]} 31. Rg1 {[%emt 0:00:01]} Rg8 {[%emt 0:03:18]} 32. Qf2 {[%emt 0:01:35]} Be6 {[%emt 0:07:04]} 33. Qh4 {[%emt 0:03:41]} h5 {[%emt 0:02:37]} 34. Ne7 {[%emt 0:07:21]} Rg4 {[%emt 0:00:23]} 35. Rxg4 {[%emt 0:00:02]} Bxg4 {[%emt 0:00:08]} 36. Nf5 {[%emt 0:03:04]} Bf3+ {[%emt 0:00:52]} 37. Bg2 {[%emt 0:00:02]} Be2 {[%emt 0:00:46]} 38. Bf1 {[%emt 0:01:14]} Bf3+ {[%emt 0:00:21]} 39. Bg2 {[%emt 0:00:01]} Be2 {[%emt 0:00:23]} 40. Bf1 {[%emt 0:00:01]} Bf3+ {[%emt 0:00:51]} 1/2-1/2

[Event "WYCC U18 Open 2019"]
[Site "Mumbai"]
[Date "2019.10.10"]
[Round "9.13"]
[White "Rahul Srivatshav P"]
[Black "Donoso Diaz, Sebastian"]
[Result "1-0"]
[ECO "A30"]
[WhiteElo "2460"]
[BlackElo "2203"]
[Annotator "ChessBase"]
[PlyCount "49"]
[EventDate "2019.10.02"]
[EventType "swiss"]
[EventCountry "IND"]
[SourceTitle "playchess.com"]
[Source "ChessBase"]
[SourceQuality "1"]
[TimeControl "40/5400+30:1800+30"]

1. c4 c5 2. Nf3 Nc6 3. b3 Nf6 4. Bb2 e6 5. g3 d5 6. cxd5 exd5 7. Bg2 Bg4 8. O-O Bxf3 9. Bxf3 h5 10. h4 Bd6 11. e3 Rh6 12. Nc3 Qe7 13. Nxd5 Nxd5 14. Bxd5 O-O-O 15. Bxc6 bxc6 16. Qf3 Rg6 17. Rac1 Qd7 18. Kg2 Rg4 19. d4 cxd4 20. Rxc6+ Kb8 21. Bxd4 g5 22. Rd1 gxh4 23. Be5 Bxe5 24. Rxd7 Rxd7 25. Qf5 1-0

[Event "WYCC U18 Open 2019"]
[Site "Mumbai"]
[Date "2019.10.10"]
[Round "9.14"]
[White "Vinay Thomas Abraham"]
[Black "Wang, Shixu B"]
[Result "0-1"]
[ECO "B10"]
[WhiteElo "1971"]
[BlackElo "2370"]
[Annotator "ChessBase"]
[PlyCount "86"]
[EventDate "2019.10.02"]
[EventType "swiss"]
[EventCountry "IND"]
[SourceTitle "playchess.com"]
[Source "ChessBase"]
[SourceQuality "1"]
[TimeControl "40/5400+30:1800+30"]

1. e4 {[%emt 0:00:00]} c6 {[%emt 0:00:00]} 2. Nf3 {[%emt 0:00:00]} d5 {[%emt 0:00:00]} 3. exd5 {[%emt 0:00:00]} cxd5 {[%emt 0:00:07]} 4. Ne5 {[%emt 0:00:00]} Nf6 {[%emt 0:00:13]} 5. d4 {[%emt 0:00:00]} g6 {[%emt 0:00:23]} 6. Bd3 {[%emt 0:00:00]} Bg7 {[%emt 0:00:13]} 7. c3 {[%emt 0:00:00]} O-O {[%emt 0:00:06]} 8. Qe2 {[%emt 0:00:00]} Nc6 {[%emt 0:04:34]} 9. O-O {[%emt 0:00:17]} Nxe5 {[%emt 0:01:18]} 10. dxe5 {[%emt 0:00:26]} Nd7 {[%emt 0:00:12]} 11. f4 {[%emt 0:00:36]} Nc5 {[%emt 0:09:56]} 12. Be3 {[%emt 0:01:39]} Nxd3 {[%emt 0:00:52]} 13. Qxd3 {[%emt 0:00:04]} Bf5 {[%emt 0:00:18]} 14. Qe2 {[%emt 0:00:14]} Qc7 {[%emt 0:11:52]} 15. Nd2 {[%emt 0:00:25]} Rfd8 {[%emt 0:00:26]} 16. Bd4 {[%emt 0:00:23]} Bd7 {[%emt 0:06:39]} 17. Qe3 {[%emt 0:05:43]} b6 {[%emt 0:04:03]} 18. Rae1 {[%emt 0:00:24]} Bf5 {[%emt 0:09:53]} 19. h3 {[%emt 0:00:47]} h5 {[%emt 0:00:04]} 20. Nf3 {[%emt 0:03:11]} e6 {[%emt 0:00:39]} 21. Nd2 {[%emt 0:02:36]} Bf8 {[%emt 0:01:30]} 22. Qe2 {[%emt 0:02:23]} h4 {[%emt 0:02:12]} 23. Nf3 {[%emt 0:02:10]} Be7 {[%emt 0:00:01]} 24. Bf2 {[%emt 0:01:05]} Qc4 {[%emt 0:01:02]} 25. Qxc4 {[%emt 0:05:20]} dxc4 {[%emt 0:00:02]} 26. Rd1 {[%emt 0:02:35]} Be4 {[%emt 0:06:06]} 27. Nxh4 {[%emt 0:11:46]} b5 {[%emt 0:00:42]} 28. Rfe1 {[%emt 0:05:25]} Bd5 {[%emt 0:03:29]} 29. g3 {[%emt 0:09:50]} b4 {[%emt 0:08:21]} 30. Rd2 {[%emt 0:05:03]} a5 {[%emt 0:01:54]} 31. Rc1 {[%emt 0:14:17]} a4 {[%emt 0:01:35]} 32. cxb4 {[%emt 0:03:14]} Bxb4 {[%emt 0:00:36]} 33. Rdd1 {[%emt 0:06:07]} a3 {[%emt 0:00:28]} 34. bxa3 {[%emt 0:00:11]} Bxa3 {[%emt 0:00:13]} 35. Rc2 {[%emt 0:02:24]} Rdc8 {[%emt 0:03:48]} 36. Ng2 {[%emt 0:08:38]} Be4 {[%emt 0:02:23]} 37. Rc3 {[%emt 0:00:24]} Bb2 {[%emt 0:00:06]} 38. Re3 {[%emt 0:00:30]} Bxg2 {[%emt 0:03:29]} 39. Kxg2 {[%emt 0:00:52]} c3 {[%emt 0:00:04]} 40. Ree1 {[%emt 0:04:15]} c2 {[%emt 0:00:08]} 41. Rc1 {[%emt 0:30:27]} Bxc1 {[%emt 0:30:11]} 42. Rxc1 {[%emt 0:00:06]} Rab8 {[%emt 0:00:09]} 43. Kf1 {[%emt 0:00:15]} Rb1 {[%emt 0:00:15]} 0-1

[Event "WYCC U18 Open 2019"]
[Site "Mumbai"]
[Date "2019.10.10"]
[Round "9.15"]
[White "Srijit Paul"]
[Black "Om Kharola"]
[Result "0-1"]
[ECO "A08"]
[WhiteElo "2317"]
[BlackElo "2328"]
[Annotator "NA"]
[PlyCount "92"]
[EventDate "2019.10.02"]
[EventType "swiss"]
[EventCountry "IND"]
[SourceTitle "playchess.com"]
[Source "ChessBase"]
[SourceQuality "1"]
[TimeControl "40/5400+30:1800+30"]

1. e4 {[%emt 0:00:00]} c5 {[%emt 0:00:00]} 2. Nf3 {[%emt 0:00:00]} e6 {[%emt 0:00:00]} 3. d3 {[%emt 0:00:10]} Nc6 {[%emt 0:00:00]} 4. g3 {[%emt 0:00:06]} Nf6 {[%emt 0:00:25]} 5. Bg2 {[%emt 0:00:05]} d5 {[%emt 0:00:04]} 6. Nbd2 {[%emt 0:00:04]} Be7 {[%emt 0:00:07]} 7. O-O {[%emt 0:00:05]} O-O {[%emt 0:00:08]} 8. Re1 {[%emt 0:00:05]} b5 {[%emt 0:00:17]} 9. c3 {[%emt 0:01:40]} a5 {[%emt 0:01:09]} 10. Nf1 {[%emt 0:02:07]} a4 {[%emt 0:04:26]} 11. Bg5 {[%emt 0:03:55]} b4 {[%emt 0:02:55]} 12. a3 {[%emt 0:04:59]} bxc3 {[%emt 0:03:17]} 13. bxc3 {[%emt 0:00:04]} h6 {[%emt 0:00:59]} 14. Bf4 {[%emt 0:00:20]} Bd7 {[%emt 0:03:24]} 15. e5 {[%emt 0:01:27]} Ne8 {[%emt 0:00:05]} 16. h4 {[%emt 0:00:05]} f5 {[%emt 0:03:52]} 17. exf6 {[%emt 0:02:53]} Bxf6 {[%emt 0:00:14]} 18. Qd2 {[%emt 0:00:16]} Na5 {[%emt 0:01:05]} 19. Rad1 {[%emt 0:00:34]} Nb3 {[%emt 0:00:17]} 20. Qc2 {[%emt 0:00:04]} Nc7 {[%emt 0:02:01]} 21. c4 {[%emt 0:01:25]} Be8 {[%emt 0:15:18]} 22. N1h2 {[%emt 0:16:52]} Ra7 {[%emt 0:13:20]} 23. Bh3 {[%emt 0:05:58]} Kh8 {[%emt 0:05:42]} 24. Be5 {[%emt 0:03:14]} Bh5 {[%emt 0:06:39]} 25. Bg4 {[%emt 0:00:22]} Qe8 {[%emt 0:00:07]} 26. Bxf6 {[%emt 0:12:27]} gxf6 {[%emt 0:02:24]} 27. cxd5 {[%emt 0:01:46]} e5 {[%emt 0:00:41]} 28. Nd2 {[%emt 0:03:04]} Bxg4 {[%emt 0:05:19]} 29. Nxg4 {[%emt 0:00:05]} Nd4 {[%emt 0:01:22]} 30. Qxc5 {[%emt 0:00:10]} Ncb5 {[%emt 0:00:02]} 31. Qb6 {[%emt 0:04:10]} Qc8 {[%emt 0:03:20]} 32. Nxe5 {[%emt 0:05:18]} Ra6 {[%emt 0:01:14]} 33. Ng6+ {[%emt 0:00:39]} Kg7 {[%emt 0:00:06]} 34. Qxa6 {[%emt 0:11:05]} Qxa6 {[%emt 0:00:07]} 35. Nxf8 {[%emt 0:00:03]} Kxf8 {[%emt 0:00:07]} 36. Rc1 {[%emt 0:00:04]} Qa5 {[%emt 0:08:12]} 37. Rc8+ {[%emt 0:06:10]} Kf7 {[%emt 0:00:30]} 38. Rce8 {[%emt 0:02:46]} Qxd2 {[%emt 0:02:42]} 39. R1e7+ {[%emt 0:00:06]} Kg6 {[%emt 0:00:05]} 40. Rg8+ {[%emt 0:00:12]} Kh5 {[%emt 0:04:48]} 41. Kg2 {[%emt 0:30:53]} f5 {[%emt 0:36:17]} 42. Re3 {[%emt 0:12:23]} Nc3 {[%emt 0:00:56]} 43. g4+ {[%emt 0:02:06]} fxg4 {[%emt 0:00:09]} 44. Rf8 {[%emt 0:00:00]} Nf3 {[%emt 0:00:00]} 45. Rfe8 {[%emt 0:00:00]} Nxh4+ {[%emt 0:00:00]} 46. Kg1 {[%emt 0:00:00]} Qd1+ {[%emt 0:00:00]} 0-1

[Event "WYCC U18 Open 2019"]
[Site "Mumbai"]
[Date "2019.10.10"]
[Round "9.16"]
[White "Sambarta Banerjee"]
[Black "Vanczak, Tamas"]
[Result "1/2-1/2"]
[ECO "E32"]
[WhiteElo "1859"]
[BlackElo "2327"]
[Annotator "ChessBase"]
[PlyCount "67"]
[EventDate "2019.10.02"]
[EventType "swiss"]
[EventCountry "IND"]
[SourceTitle "playchess.com"]
[Source "ChessBase"]
[SourceQuality "1"]
[TimeControl "40/5400+30:1800+30"]

1. d4 {[%emt 0:00:00]} Nf6 {[%emt 0:00:00]} 2. c4 {[%emt 0:00:00]} e6 {[%emt 0:00:07]} 3. Nc3 {[%emt 0:00:00]} Bb4 {[%emt 0:00:21]} 4. Qc2 {[%emt 0:00:00]} d6 {[%emt 0:00:29]} 5. Nf3 {[%emt 0:03:37]} Nbd7 {[%emt 0:00:27]} 6. g3 {[%emt 0:05:38]} O-O {[%emt 0:01:16]} 7. Bg2 {[%emt 0:01:32]} e5 {[%emt 0:00:49]} 8. O-O {[%emt 0:01:41]} Re8 {[%emt 0:02:18]} 9. dxe5 {[%emt 0:08:33]} dxe5 {[%emt 0:00:29]} 10. Bg5 {[%emt 0:03:44]} h6 {[%emt 0:03:29]} 11. Bxf6 {[%emt 0:04:38]} Nxf6 12. Rad1 {[%emt 0:00:48]} Qe7 {[%emt 0:20:16]} 13. a3 {[%emt 0:03:02]} Bxc3 {[%emt 0:01:38]} 14. Qxc3 {[%emt 0:00:02]} e4 {[%emt 0:01:48]} 15. Nd4 {[%emt 0:03:12]} c6 {[%emt 0:00:32]} 16. Nc2 {[%emt 0:04:18]} Bg4 {[%emt 0:04:29]} 17. Rd2 {[%emt 0:00:28]} Rad8 {[%emt 0:03:23]} 18. Ne3 {[%emt 0:01:32]} Rxd2 {[%emt 0:04:00]} 19. Qxd2 {[%emt 0:00:09]} Rd8 {[%emt 0:00:23]} 20. Qc2 {[%emt 0:00:07]} Bh5 {[%emt 0:10:00]} 21. Rd1 {[%emt 0:00:39]} Rxd1+ {[%emt 0:02:38]} 22. Qxd1 {[%emt 0:00:02]} Qe5 {[%emt 0:00:24]} 23. Qd2 {[%emt 0:03:41]} Ng4 {[%emt 0:02:27]} 24. Nxg4 {[%emt 0:14:11]} Bxg4 {[%emt 0:00:07]} 25. e3 {[%emt 0:03:02]} Be6 {[%emt 0:11:05]} 26. Qd8+ {[%emt 0:06:02]} Kh7 {[%emt 0:00:08]} 27. Qd4 {[%emt 0:00:57]} Qxd4 {[%emt 0:03:13]} 28. exd4 {[%emt 0:00:07]} Bxc4 {[%emt 0:08:35]} 29. Bxe4+ {[%emt 0:00:08]} g6 {[%emt 0:00:06]} 30. f4 {[%emt 0:01:58]} f5 {[%emt 0:01:56]} 31. Bf3 {[%emt 0:00:32]} Kg7 {[%emt 0:00:23]} 32. Kf2 {[%emt 0:00:07]} Kf6 {[%emt 0:00:11]} 33. Ke3 {[%emt 0:00:08]} Ke6 {[%emt 0:00:37]} 34. Bd1 {[%emt 0:00:57] Ke5 Ke4+} 1/2-1/2